Cogmind - Beta 13 *** ADVENTURER MODE // 2024.04.05 @ 16:32:16 Player: Nexusuxen Result: Self-destructed Performance ------------- Evolutions (1) 500 Regions Visited (3) 600 Robots Destroyed (43) 215 Value Destroyed (1058) 1058 Prototype IDs (1) 20 Alien Tech Used (0) 0 Bonus (88) 88 TOTAL SCORE: 2481 Bonus ------- Follower Combat Kills 88 Cogmind --------- Core Integrity 323/400 Matter 300/300 Energy 265/265 System Corruption 0% Temperature Cool (0) Movement Walking (130) Location -9/Storage Parts ------- > --- POWER (1) -------- Improved Ion Engine > --- PROPULSION (3) --- Titanium Leg Titanium Leg Titanium Leg > --- UTILITY (3) ------ Heat Sink Small Storage Unit Shield Generator > --- WEAPON (2) ------- Advanced Beam Cannon Advanced Beam Cannon > --- INVENTORY (8) ---- Improved Ion Engine Titanium Leg Small Battery (100) Light Armor Plating Drone Bay (2/2) Drone Bay (2/2) Shock Rifle Shock Bomb Launcher Peak State ------------ > --- POWER ------------ Improved Ion Engine > --- PROPULSION ------- Titanium Leg Titanium Leg Titanium Leg > --- UTILITY ---------- Heat Sink Small Storage Unit Shield Generator > --- WEAPON ----------- Advanced Beam Cannon Advanced Beam Cannon > --- INVENTORY -------- Improved Ion Engine Titanium Leg Small Battery Improved Targeting Computer Light Armor Plating Drone Bay Shock Rifle Shock Bomb Launcher [Rating: 23] Favorites ----------- Power Ion Engine Engine Ion Engine Propulsion Titanium Leg Leg Titanium Leg Wheel Wheel Utility Small Storage Unit Device Heat Sink Storage Small Storage Unit Protection Light Armor Plating Weapon Advanced Beam Cannon Energy Gun EM Pulse Gun Energy Cannon Advanced Beam Cannon Ballistic Gun Assault Rifle Build | -11 -10 -9 -9 ------- Run | Yrd Mat Mat Sto Slots Evolved 2 | . . 2 . Power . | . . . . Propulsion 1 | . . 1 . Utility 1 | . . 1 . Weapon . | . . . . Parts Attached 27 | 8 4 14 1 Power 4 | 1 . 2 1 Engine 4 | 1 . 2 1 Core . | . . . . Reactor . | . . . . Propulsion 10 | 4 1 5 . Treads . | . . . . Leg 8 | 2 1 5 . Wheel 2 | 2 . . . Hover . | . . . . Flight . | . . . . Utility 6 | 1 1 4 . Device 3 | . . 3 . Storage 2 | 1 1 . . Processor . | . . . . Hackware . | . . . . Protection 1 | . . 1 . Artifact . | . . . . Weapon 7 | 2 2 3 . Energy Gun 3 | 1 2 . . Energy Cannon 3 | . . 3 . Ballistic Gun 1 | 1 . . . Ballistic Cannon . | . . . . Launcher . | . . . . Special Weapon . | . . . . Impact Weapon . | . . . . Slashing Weapon . | . . . . Piercing Weapon . | . . . . Special Melee Weapon . | . . . . Unidentified Prototypes 1 | . . 1 . Parts Lost . | . . . . Power . | . . . . Propulsion . | . . . . Utility . | . . . . Weapon . | . . . . Highest Loss Streak . | . . . . To Critical Strikes . | . . . . Average Slot Usage (%) 96 | . 91 99 99 Engine 11 | . 14 11 10 Leg 31 | . 27 32 33 Device 11 | . . 12 22 Storage 16 | . 20 18 11 Energy Gun 6 | . 18 1 . Energy Cannon 14 | . . 20 22 Ballistic Gun 3 | . 9 . . Naked Turns . | . . . . Heaviest Build 23 | 13 15 23 23 Greatest Support 51 | 20 20 51 51 Greatest Overweight (x) 1 | . 1 . . Average Overweight (x) . | . . . . Largest Inventory Capacity 8 | 8 8 8 8 Average Capacity 7 | 6 8 8 8 Most Carried 8 | 5 8 8 8 Average Carried 7 | 3 6 7 7 Final Capacity 8 | 8 8 8 8 Final Carried 8 | 4 8 8 8 Class Distribution -------------------- 94% | Mutant 5% | Commander-Mutant Dominant Class ---------------- Mutant | -10/Materials Mutant | -9/Materials Mutant | -9/Storage Resources | -11 -10 -9 -9 ----------- Run | Yrd Mat Mat Sto Matter Collected 594 | 208 236 140 10 Remotely . | . . . . Salvage Created 1957 | . 467 514 976 Parts 106 | . 23 35 48 Haulers Intercepted 9 | . 2 3 4 Recyclers Shooed 2 | . 2 . . Parts Field Recycled . | . . . . Retrieved Matter . | . . . . Parts Self-Destructed . | . . . . Prevented . | . . . . Kills | -11 -10 -9 -9 ------- Run | Yrd Mat Mat Sto Combat Hostiles Destroyed 26 | . 8 5 13 Guns 8 | . 8 . . Cannons 17 | . . 4 13 Classes Destroyed 8 | . 6 2 . Tunneler 1 | . 1 . . Hauler 9 | . 2 3 4 Recycler 1 | . 1 . . Operator 2 | . . 1 1 Watcher 4 | . 2 2 . Swarmer 5 | . 3 . 2 Grunt 7 | . 5 . 2 Sentry 14 | . . 5 9 Best Kill Streak 4 | . 4 3 4 Combat Bots Only 4 | . 4 2 4 Max Kills in Single Turn 1 | . 1 1 1 Gunslinging . | . . . . Exploded . | . . . . Melee . | . . . . Uniques/NPCs Destroyed . | . . . . Combat | -11 -10 -9 -9 -------- Run | Yrd Mat Mat Sto Hostile Shots Fired 87 | . 38 30 19 Missed 27 | . 11 8 8 Damage Taken 630 | . 259 252 119 Core 120 | . 43 56 21 Absorbed by Shields 44 | . . . 44 Ignored by Resistances 201 | . 85 71 45 Regen/Repaired (Parts) 23 | . . . 23 Core Remaining (%) 91 | 100 82 . . Volleys Fired 99 | . 47 20 32 Largest 2 | . 2 2 2 Hottest 136 | . 80 136 136 Shots Fired 198 | . 94 40 64 Gun 95 | . 94 1 . Cannon 103 | . . 39 64 Launcher . | . . . . Special . | . . . . Kinetic 43 | . 43 . . Thermal 142 | . 39 39 64 Explosive . | . . . . Electromagnetic 13 | . 12 1 . Robot Hit Streak 14 | . 13 14 12 Robot Miss Streak 2 | . 1 2 2 Penetration Max . | . . . . Secondary Targets 1 | . 1 . . Max Gunslinging Chain 1 | . 1 . . Shots Hit Robots 147 | . 72 27 48 Core Hits 51 | . 22 10 19 Critical Kills 2 | . . 1 1 Critical Parts Destroyed . | . . . . Critical Strikes 2 | . . 1 1 Meltdown 2 | . . 1 1 Melee Attacks . | . . . . Impact . | . . . . Slashing . | . . . . Piercing . | . . . . Sneak Attacks . | . . . . Combat Hostiles . | . . . . Follow-up Attacks . | . . . . Damage Inflicted 2626 | . 1047 552 1027 Guns 919 | . 904 15 . Cannons 1564 | . . 537 1027 Explosions 135 | . 135 . . Melee . | . . . . Ramming 8 | . 8 . . Kinetic 405 | . 405 . . Thermal 2070 | . 506 537 1027 Explosive . | . . . . Electromagnetic 143 | . 128 15 . Impact . | . . . . Slashing . | . . . . Piercing . | . . . . Highest Corruption . | . . . . Average Corruption . | . . . . Corruption Purged . | . . . . Corruption Blocked . | . . . . Overload Shots . | . . . . Overflow Damage 32 | . 7 . 25 Projectiles 25 | . . . 25 Explosions 7 | . 7 . . Melee . | . . . . Knockbacks . | . . . . Impact . | . . . . Kinetic . | . . . . Secondary . | . . . . Self-Inflicted Damage 25 | . 25 . . Shots 1 | . 1 . . Rammed . | . . . . Targets Rammed 4 | . 4 . . Kicked 4 | . 4 . . Crushed . | . . . . Highest Temperature 189 | . 78 162 189 Average Temperature 56 | . 34 62 63 Received Heat Transfer 301 | . 135 144 22 Siege Activations . | . . . . Robots Corrupted . | . . . . Combat Hostiles . | . . . . Parts Fried . | . . . . Impact Corruptions . | . . . . Robots Melted 2 | . . 1 1 Combat Hostiles 1 | . . 1 . Parts Melted 8 | . 2 2 4 Heat Transferred 3887 | . 1075 962 1850 Parts Sabotaged . | . . . . Parts Stolen . | . . . . Parts Stripped . | . . . . Power Chain Reactions 3 | . 3 . . Alert | -11 -10 -9 -9 ------- Run | Yrd Mat Mat Sto Peak Influence 348 | . 227 275 348 Initial 27 | . . 10 27 Average 109 | . 69 91 187 Maximum Alert Level 1 | . 1 1 1 Low Security (%) 77 | 100 94 87 44 Level 1 22 | . 5 12 55 Level 2 . | . . . . Level 3 . | . . . . Level 4 . | . . . . Level 5 . | . . . . High Security . | . . . . Max Security . | . . . . Squads Dispatched 1 | . . . 1 Investigation 1 | . . . 1 Extermination . | . . . . Reinforcement . | . . . . Assault . | . . . . Garrison . | . . . . Intercept . | . . . . Searches Triggered . | . . . . Construction Impeded . | . . . . Haulers Reinforced . | . . . . Active Scanning Responses . | . . . . Cargo Convoy Interrupts . | . . . . Stealth | -11 -10 -9 -9 --------- Run | Yrd Mat Mat Sto Distress Signals 3 | . 1 . 2 Communications Jammed . | . . . . Distress Signals . | . . . . Times Spotted 42 | . 14 8 20 Peak Tracking Total 7 | . 4 2 7 Tactical Retreats 3 | . 1 . 2 Traps | -11 -10 -9 -9 ------- Run | Yrd Mat Mat Sto Traps Triggered 5 | . 2 1 2 Indirectly . | . . . . Trap Hack Attempts . | . . . . Triggered . | . . . . Disarmed . | . . . . Reprogrammed 3 | . . 3 . Reused 3 | . . 3 . Traps Extracted . | . . . . Installed . | . . . . Triggered 3 | . . 3 . Machines | -11 -10 -9 -9 ---------- Run | Yrd Mat Mat Sto Machines Disabled . | . . . . Max in Single Turn . | . . . . Garrison Access 1 | . . . 1 Machines Repaired . | . . . . Machines Dismantled . | . . . . Machines Sabotaged . | . . . . Overloaded Fab Kills . | . . . . Hacking | -11 -10 -9 -9 --------- Run | Yrd Mat Mat Sto Machines Accessed 18 | . 6 3 9 Terminals 13 | . 4 3 6 Fabricators . | . . . . Repair Stations 1 | . . . 1 Recycling Units 3 | . 2 . 1 Scanalyzers . | . . . . Garrison Access 1 | . . . 1 Total Hacks 28 | . 8 3 17 Successful 23 | . 8 3 12 Failed 5 | . . . 5 Catastrophic . | . . . . Database Lockouts . | . . . . Manual 4 | . 1 1 2 Terminals 20 | . 5 3 12 Fabricators . | . . . . Repair Stations 3 | . . . 3 Recycling Units 4 | . 3 . 1 Scanalyzers . | . . . . Garrison Access 1 | . . . 1 Terminal Hacks 16 | . 5 3 8 Open Door 1 | . . . 1 Branch Access Points 1 | . . 1 . Unreport Threat 1 | . 1 . . Locate Traps 3 | . . 1 2 Reprogram Traps 2 | . 1 1 . Security Status 1 | . . . 1 Surveillance Status 1 | . . . 1 Patrol Status 1 | . . . 1 Hauler Manifests 1 | . 1 . . Registered Components 1 | . 1 . . Zone Layout 3 | . 1 . 2 Fabricator Hacks . | . . . . Repair Station Hacks 2 | . . . 2 Scan Component 1 | . . . 1 Repair 1 | . . . 1 Recycling Unit Hacks 4 | . 3 . 1 Report Inventory 3 | . 2 . 1 Retrieve Components 1 | . 1 . . Scanalyzer . | . . . . Garrison Access Hacks 1 | . . . 1 Seal Access 1 | . . . 1 Unauthorized Hacks . | . . . . Terminals . | . . . . Fabricators . | . . . . Repair Stations . | . . . . Recycling Units . | . . . . Scanalyzers . | . . . . Garrison Access . | . . . . Data Cores Recovered 2 | . . 1 1 Used 1 | . . 1 . Hacking Detections 7 | . 2 2 3 Full Trace Events 1 | . . . 1 Feedback Events . | . . . . Feedback Blocked . | . . . . Robot Schematics Acquired . | . . . . Robots Built . | . . . . Authchips . | . . . . Time . | . . . . Total Robot Build Rating . | . . . . Part Schematics Acquired . | . . . . Parts Built . | . . . . Authchips . | . . . . Time . | . . . . Total Part Build Rating . | . . . . Parts Repaired 1 | . . . 1 Time 32 | . . . 32 Parts Recycled . | . . . . Recycled Matter . | . . . . Retrieved Matter . | . . . . Retrieved Components 3 | . 3 . . Parts Scanalyzed . | . . . . Part Schematics Acquired . | . . . . Parts Damaged . | . . . . Bothacking | -11 -10 -9 -9 ------------ Run | Yrd Mat Mat Sto Used RIF Installer . | . . . . Robots Hacked . | . . . . Non-combat . | . . . . Combat . | . . . . Robot Hacks Applied . | . . . . Relay Couplers Released . | . . . . Fabnet Peak Effective % . | . . . . Robots Rewired . | . . . . Allies Hacked . | . . . . Hacks Repelled . | . . . . Allies | -11 -10 -9 -9 -------- Run | Yrd Mat Mat Sto Total Allies 10 | . . . 10 Largest Group 10 | . . . 10 Highest-Rated Group 88 | . . . 88 Highest-Rated Ally 16 | . . . 16 Total Orders . | . . . . Ally Attacks 37 | . . . 37 Total Damage 344 | . . . 344 Kills 7 | . . . 7 Allies Corrupted . | . . . . Allies Melted . | . . . . Intel | -11 -10 -9 -9 ------- Run | Yrd Mat Mat Sto Robot Analysis Total . | . . . . Derelict Logs Recovered . | . . . . Drone Launches . | . . . . Drone Recoveries . | . . . . Exploration | -11 -10 -9 -9 ------------- Run | Yrd Mat Mat Sto Turns Passed 2470 | 110 799 816 745 Spaces Moved 1481 | 84 434 528 435 Core 6 | 6 . . . Treads . | . . . . Legs 1464 | 67 434 528 435 Wheels 11 | 11 . . . Hover . | . . . . Flight . | . . . . Fastest Speed 50 | 50 120 120 130 Average Speed 125 | 109 120 129 130 Slowest Speed 190 | 120 190 130 130 Overloaded Moves . | . . . . Propulsion Burnouts . | . . . . Robots Hopped . | . . . . Cave-ins Triggered . | . . . . Exploration Rate (%) 45 | 6 69 36 71 Regions Visited 3 Branch Regions 1 Pre-discovered Areas . | . . . . Known Exits Taken 1 | . . 1 . Unknown Exits Taken 2 | 1 1 . . Scrap Searched . | . . . . Spaces Dug . | . . . . Terrain Destroyed 12 | . 12 . . Melee . | . . . . Projectile . | . . . . AOE 12 | . 12 . . Terrain Rammed . | . . . . Walls Destroyed . | . . . . Machines Disabled . | . . . . Actions | -11 -10 -9 -9 --------- Run | Yrd Mat Mat Sto Total 1899 | 101 618 627 553 Wait 227 | . 116 38 73 Move 1478 | 83 433 527 435 Hop . | . . . . Pick Up 39 | 10 10 15 4 Fast Attach . | . . . . Attach 14 | 6 2 5 1 Detach . | . . . . Swap 13 | 2 2 9 . Drop 20 | . 4 13 3 Fire 99 | . 47 20 32 Melee . | . . . . Ram . | . . . . Kick 4 | . 4 . . Crush . | . . . . Escape Stasis . | . . . . Rewire 5 | . . . 5 Trap . | . . . . Miscellaneous . | . . . . Route ------- -11/Scrapyard -10/Materials (discovered 3 exits: *Mat x2 / [*Min]) -9/Materials (discovered 5 exits: [*Mat] / Min x2 / *Sto x2) -9/Storage (discovered 1 exit: [*Mat]) History --------- Turn | Location | Event 15 | -11/Scrapyard | Discovered new exit (range 15) 111 | -11/Scrapyard | Entered Materials 302 | -10/Materials | Build established: Mutant 500 | -10/Materials | Discovered new exit (range 10) 625 | -10/Materials | Discovered new exit (range 8) 725 | -10/Materials | Discovered new exit (range 16) 910 | -10/Materials | Entered another Materials area 910 | -9/Materials | Evolved 2 slots: Propulsion x1, Utility x1 1219 | -9/Materials | Identified exit to Mines 1219 | -9/Materials | Identified exit to Storage 1564 | -9/Materials | Discovered new exit (range 16) 1726 | -9/Materials | Entered Storage 1971 | -9/Storage | Assisted by bots powering up and referring to "LRC-V3" 2042 | -9/Storage | Lost 4 allies 2159 | -9/Storage | Lost 6 allies 2307 | -9/Storage | Repaired Imp. Ion Engine 2450 | -9/Storage | Discovered new exit (range 6) 2471 | -9/Storage | Self-destructed Last Messages --------------- R-06 Scavenger collects Signal Interpreter. Destroyed Lgt. Ion Engine. Connecting with Terminal... >>Enumerate(Surveillance) Retrieving latest reported positions... Found 2 active surveillance squads. Downloaded coordinate data. O-16 Technician destroyed. K-01 Serf collects debris. EXIT=FOUND Acquired data core, extracted dynamic key. Decrypted 1 local trap positions from data. Connecting with Terminal... Connecting with Door Terminal... >>Open(Door) Sealed Heavy Doors opened. Dropped EM Pulse Gun. Acquired Drone Bay. Dropped Imp. Targeting Computer. Acquired Drone Bay. Map ----- +----------------------------------------------------+ | | | | | | | | | | | | | | | | | | | | | | | | | | | | | | | | | | | | | | | | | ????????????????????????????????????? | | ????????????????????????????????????? | | ?????????#####??????????????????????? | | ?????????#! !#??????????????????????? | | ?????????#! !#??????????????????????? | | ?????????#! @#??????????????????????? | | ?????????#![!#?????????????????????## | | ?????????## ######?????????????????# | | ?????????# T#T"#?????????????????# | | ????????####+## "###???????????????# | | ????????# #???????????????## | | ????????# < / % #?????####??????## | | ????????# #????? ######### | | ????????######## #????? # | | ???????????????# #????? # """ | | ???????????????# #????? # " """" | | ???????????????# #????? # " "" " | | ???????????????# #????? # " "" " | | ???????????????/ =+????? # """" " | | ???????????????# !%#????? # """ | | ???????????????# =!#????? # | | ???????????????+ #?????############ | | ???????????????# #????????????????? | | ???????????????#! #????????????????? | | ???????????????#% #????????????????? | | ???????????????#* #????????????????? | | ???????????????# #????????????????? | | ???????????????# #?????????######## | | ??????????????## ^+?????????# | | ??????????????#T #?????????# """" | +----------------------------------------------------+ Best States ------------- Heat Dissipation 38 Energy Generation 12 Energy Capacity 350 Matter Stores 300 Matter Capacity 300 Sight Range 16 Terrain Scan Density 10 Armor Coverage 150 Resistance: KI 20 Resistance: TH 20 Resistance: EX 20 Resistance: EM 20 Resistance: I 20 Resistance: S 20 Resistance: P 20 Evasion (%) 55 Offensive Hacking 10 Item Schematics ----------------- None Robot Schematics ------------------ None Fabricated ------------ Nothing Alien Tech Used ----------------- None Achievements -------------- Dynamic Key Everything Is Under Control It's Just You The More The Merrier Challenges ------------ None Game ------ Seed HardcellLauncherDatajack Manual? 0 Play Time 00:30:51 Cumulative 5.5 hours Start 2024.04.04 @ 19:31:00 End 2024.04.05 @ 16:32:16 Sessions 3 Manual Loads 0 Difficulty Adventurer Special Mode None Game No. 6 Rogue 0 Adventurer 3 Explorer 3 Win Type - Total 0 Types 0/0/0/0/0/0/0/0/0 Lore% 7 Gallery% 11 Achievement% 10 Wizard Run 0 Options --------- Layout 1 ASCII 0 Keyboard 0 Movement Arrows Keybinds 0 Fullscreen 1 Font 16/SmallcapsGlow Map View 55x38 Zoom Use 0% Tactical HUD 0 Map Filters NONE Filters NONE Steam 1 RUN: 12e67841-932a-410d-8cb0-9d1c48dca1c8